[Event "13th Dolomiti-Forni di Sopra-A 2022"]
[Site "Forni di Sopra"]
[Date "2022.06.14"]
[Round "4.1"]
[White "Bernadskiy, Vitaliy"]
[Black "Ambardekar, Harshavardhan"]
[Result "1/2-1/2"]
[ECO "B50"]
[WhiteElo "2636"]
[BlackElo "1656"]
[Annotator "RC"]
[PlyCount "82"]
[EventDate "2022.06.13"]
[EventType "swiss"]
[EventCountry "ITA"]
[SourceTitle "playchess.com"]
[Source "ChessBase"]
[SourceQuality "1"]
[TimeControl "40/5400+30:1800+30"]

1. e4 {[%emt 0:02:36]} c5 {[%emt 0:00:54]} 2. Nf3 {[%emt 0:00:08]} d6 {[%emt 0:00:47]} 3. Nc3 {[%emt 0:00:06]} Nf6 {[%emt 0:01:04]} 4. e5 {[%emt 0:00:14]} dxe5 {[%emt 0:01:03]} 5. Nxe5 {[%emt 0:00:04]} Nbd7 {[%emt 0:00:40]} 6. d4 {[%emt 0:00:27]} Nxe5 {[%emt 0:01:40]} 7. dxe5 {[%emt 0:00:03]} Qxd1+ {[%emt 0:00:08]} 8. Nxd1 {[%emt 0:02:03]} Nd5 {[%emt 0:00:05]} 9. Ne3 {[%emt 0:01:05]} Nxe3 {[%emt 0:03:07]} 10. Bxe3 {[%emt 0:00:04]} e6 {[%emt 0:00:07]} 11. O-O-O {[%emt 0:03:03]} Bd7 {[%emt 0:00:07]} 12. h4 {[%emt 0:00:03]} h5 {[%emt 0:02:29]} 13. Bg5 {[%emt 0:03:21]} Be7 {[%emt 0:00:29]} 14. Rh3 {[%emt 0:00:03]} Bxg5+ {[%emt 0:03:29]} 15. hxg5 {[%emt 0:03:08]} Ke7 {[%emt 0:00:05]} 16. Rc3 {[%emt 0:04:45]} b6 {[%emt 0:01:45]} 17. b4 {[%emt 0:07:43]} Rhc8 {[%emt 0:00:05]} 18. b5 {[%emt 0:01:34]} Rd8 {[%emt 0:00:23]} 19. Ra3 {[%emt 0:00:35]} Rdc8 {[%emt 0:05:50]} 20. g4 {[%emt 0:06:22]} Rc7 {[%emt 0:08:24]} 21. gxh5 {[%emt 0:02:55]} c4 {[%emt 0:00:06]} 22. Be2 {[%emt 0:13:45]} Bxb5 {[%emt 0:01:00]} 23. Rh3 {[%emt 0:00:22]} Bc6 {[%emt 0:01:56]} 24. Rd4 {[%emt 0:10:53]} b5 {[%emt 0:01:56]} 25. Kd2 {[%emt 0:03:15]} Bd5 {[%emt 0:00:44]} 26. f4 {[%emt 0:00:19]} Rc5 {[%emt 0:01:58]} 27. Bf3 {[%emt 0:07:10]} Bxf3 {[%emt 0:01:27]} 28. Rxf3 {[%emt 0:00:03]} b4 {[%emt 0:00:11]} 29. Rh3 {[%emt 0:02:07]} a5 {[%emt 0:01:28]} 30. h6 {[%emt 0:04:33]} gxh6 {[%emt 0:01:09]} 31. gxh6 {[%emt 0:00:14]} Rc6 {[%emt 0:03:06]} 32. h7 {[%emt 0:03:31]} Rh8 {[%emt 0:00:05]} 33. Rh6 {[%emt 0:02:00]} Rc7 {[%emt 0:00:50]} 34. Rh1 {[%emt 0:02:09]} a4 {[%emt 0:00:57]} 35. c3 {[%emt 0:01:20]} b3 {[%emt 0:00:36]} 36. a3 {[%emt 0:00:53]} Rd7 {[%emt 0:02:27]} 37. Ke3 {[%emt 0:02:04]} Rc7 {[%emt 0:56:23]} 38. Kd2 {[%emt 0:14:30]} f6 39. Rh6 {[%emt 0:00:30]} fxe5 40. fxe5 Rd7 {[%emt 0:01:30]} 41. Ke3 {[%emt 0:17:00]} Ke8 {[%emt 0:00:00]} 1/2-1/2

[Event "13th Dolomiti-Forni di Sopra-A 2022"]
[Site "Forni di Sopra"]
[Date "2022.06.14"]
[Round "4.8"]
[White "Cappelletto, Joshuaede"]
[Black "Barnes, Michael H"]
[Result "1/2-1/2"]
[ECO "B90"]
[WhiteElo "2276"]
[BlackElo "2159"]
[Annotator "NA RC"]
[PlyCount "86"]
[EventDate "2022.06.13"]
[EventType "swiss"]
[EventCountry "ITA"]
[SourceTitle "playchess.com"]
[Source "ChessBase"]
[SourceQuality "1"]
[TimeControl "40/5400+30:1800+30"]

1. e4 {[%emt 0:03:13]} c5 {[%emt 0:00:08]} 2. Nf3 {[%emt 0:00:13]} d6 {[%emt 0:00:07]} 3. d4 {[%emt 0:00:13]} cxd4 {[%emt 0:00:06]} 4. Nxd4 {[%emt 0:00:03]} Nf6 {[%emt 0:00:08]} 5. Nc3 {[%emt 0:00:04]} a6 {[%emt 0:00:05]} 6. h4 {[%emt 0:00:10]} e5 {[%emt 0:00:32]} 7. Nb3 {[%emt 0:00:40]} Be7 {[%emt 0:00:16]} 8. Bg5 {[%emt 0:00:06]} Be6 {[%emt 0:00:10]} 9. Bxf6 {[%emt 0:00:05]} Bxf6 {[%emt 0:00:04]} 10. g3 {[%emt 0:00:06]} Be7 {[%emt 0:03:38]} 11. Qd2 {[%emt 0:00:07]} Nd7 {[%emt 0:00:33]} 12. O-O-O {[%emt 0:00:10]} Rc8 {[%emt 0:07:04]} 13. Kb1 {[%emt 0:00:19]} O-O {[%emt 0:02:26]} 14. f4 {[%emt 0:00:05]} b5 {[%emt 0:04:24]} 15. f5 {[%emt 0:00:05]} Bc4 {[%emt 0:00:11]} 16. g4 {[%emt 0:09:43]} Qc7 {[%emt 0:08:26]} 17. Rh2 {[%emt 0:02:30]} b4 {[%emt 0:03:12]} 18. Nd5 {[%emt 0:10:45]} Bxd5 {[%emt 0:00:08]} 19. Qxd5 {[%emt 0:00:04]} Nf6 {[%emt 0:02:59]} 20. Qd3 {[%emt 0:00:30]} d5 {[%emt 0:04:01]} 21. exd5 {[%emt 0:20:59]} e4 {[%emt 0:06:44]} 22. Qh3 {[%emt 0:00:12]} Rfd8 {[%emt 0:05:09]} 23. Rhd2 {[%emt 0:12:39]} Nxd5 {[%emt 0:04:11]} 24. Bxa6 {[%emt 0:06:53]} e3 {[%emt 0:01:11]} 25. Bxc8 {[%emt 0:00:37]} exd2 {[%emt 0:00:07]} 26. Ba6 {[%emt 0:00:05]} Qe5 {[%emt 0:08:37]} 27. g5 {[%emt 0:04:21]} Ne3 {[%emt 0:10:53]} 28. Rxd2 {[%emt 0:00:43]} Rxd2 {[%emt 0:00:07]} 29. Nxd2 {[%emt 0:00:03]} Nxf5 {[%emt 0:00:11]} 30. Qh1 {[%emt 0:09:52]} Qf4 {[%emt 0:08:46]} 31. Nf3 {[%emt 0:01:34]} g6 {[%emt 0:21:26]} 32. Bd3 {[%emt 0:02:14]} Ng3 {[%emt 0:00:00]} 33. Qd1 {[%emt 0:05:11]} Kg7 {[%emt 0:00:00]} 34. b3 {[%emt 0:00:39]} h6 {[%emt 0:00:00]} 35. Bc4 {[%emt 0:03:54]} hxg5 {[%emt 0:00:00]} 36. hxg5 {[%emt 0:00:16]} Ne4 {[%emt 0:00:00]} 37. Qd4+ {[%emt 0:04:46]} Kh7 {[%emt 0:00:00]} 38. Qe5 {[%emt 0:02:15]} Nd2+ {[%emt 0:01:29]} 39. Kb2 {[%emt 0:00:32]} Nxc4+ {[%emt 0:00:21]} 40. bxc4 {[%emt 0:00:03]} Qxf3 {[%emt 0:00:23]} 41. Qxe7 {[%emt 0:30:05]} Qc3+ {[%emt 0:30:09]} 42. Kb1 {[%emt 0:00:05]} Qxc4 {[%emt 0:00:09]} 43. Qf6 {[%emt 0:00:18]} Kg8 {[%emt 0:02:37]} 1/2-1/2

[Event "13th Dolomiti-Forni di Sopra-A 2022"]
[Site "Forni di Sopra"]
[Date "2022.06.15"]
[Round "5.3"]
[White "Harshavardhan G B"]
[Black "Korneev, Oleg"]
[Result "1-0"]
[ECO "D37"]
[WhiteElo "2367"]
[BlackElo "2521"]
[Annotator "TA"]
[PlyCount "89"]
[EventDate "2022.06.13"]
[EventType "swiss"]
[EventCountry "ITA"]
[SourceTitle "playchess.com"]
[Source "ChessBase"]
[SourceQuality "1"]
[TimeControl "40/5400+30:1800+30"]

{[%evp 17,89,19,15,16,30,0,0,0,0,0,0,-50,0,0,4,16,23,-19,-11,-12,-15,-13,-9,-11,0,0,7,0,0,0,0,0,0,0,0,0,0,0,0,0,118,120,135,0,146,151,882,889,882,885,769,580,29973,29974,29974,29975,29975,29976,29976,29977,29977,29978,29984,29985,29986,29987,29986,29987,29991,29992,29992,29993,29993,29994]} 1. d4 {[%emt 0:00:34]} d5 {[%emt 1:31:00]} 2. c4 {[%emt 0:00:32]} e6 {[%emt 0:00:00]} 3. Nf3 {[%emt 0:00:36]} Nf6 {[%emt 0:00:00]} 4. Nc3 {[%emt 0:00:06]} Be7 {[%emt 0:00:00]} 5. Bf4 {[%emt 0:02:15]} O-O {[%emt 0:00:00]} 6. e3 {[%emt 0:00:04]} c5 {[%emt 0:00:00]} 7. dxc5 {[%emt 0:00:04]} Bxc5 {[%emt 0:00:00]} 8. a3 {[%emt 0:00:24]} Nc6 {[%emt 0:00:00]} 9. Rc1 {[%emt 0:00:05]} a6 {[%emt 0:00:00]} 10. b4 {[%emt 0:01:20] D37: Queen's Gambit Declined: 5 Bf4.} Be7 {[%emt 0:00:00]} 11. cxd5 {[%emt 0:11:09]} (11. c5 {keeps more tension.} Ne4 12. Nxe4 dxe4 13. Qxd8 Bxd8 14. Ne5) 11... Nxd5 {[%emt 0:00:00]} 12. Nxd5 {[%emt 0:00:07] The position is equal.} Qxd5 {[%emt 0:00:00]} 13. Qxd5 {[%emt 0:05:00]} exd5 {[%emt 0:00:00]} 14. Kd2 {[%emt 0:19:44]} (14. Be2 $11) 14... Bf6 {[%emt 0:00:00]} (14... a5 $15 15. b5 Nd8) 15. Rc2 {[%emt 0:01:57] [#]} Bf5 $146 {[%emt 0:00:00]} ({Predecessor:} 15... h6 16. Bd3 Bg4 17. Rhc1 Rfe8 18. h3 Bxf3 19. gxf3 d4 20. Be4 Rad8 21. Bxc6 dxe3+ {1-0 (42) Socko,B (2656)-Hanssen,G (2215) Tromsoe 2009}) 16. Bd3 {[%emt 0:00:36]} Be4 {[%emt 0:00:00]} 17. Ne1 {[%emt 0:19:01]} Rfe8 {[%emt 0:00:00]} 18. f3 {[%emt 0:00:16] [#]} Rad8 $1 {[%emt 0:00:00][%cal Oh7h5]} 19. h4 {[%emt 0:00:21] [#]} (19. fxe4 dxe4 20. Rc5 Re6 $17) 19... Be5 $1 {[%emt 0:00:00]} 20. g3 {[%emt 0:09:51]} (20. fxe4 dxe4 21. Rc4 (21. Bxe5 Nxe5 22. Rc3 Ng4 $17) 21... exd3 22. Nxd3 f6 $17) 20... f5 {[%emt 0:09:30]} 21. Rc5 {[%emt 0:14:30] Bxa6 is the strong threat.} ({But not} 21. fxe4 dxe4 22. Rc5 (22. Bxe5 Nxe5 23. Rc3 Ng4 $17) 22... Rd7 $15) 21... Bxf4 {[%emt 0:00:00]} 22. gxf4 {[%emt 0:00:10] aiming for Bxa6.} Bxd3 {[%emt 0:00:00]} 23. Kxd3 {[%emt 0:00:11]} Rd6 {[%emt 0:00:00]} 24. Rh2 {[%emt 0:00:28]} b6 {[%emt 0:00:00]} 25. Rc1 {[%emt 0:00:39]} Rde6 {[%emt 0:00:00]} 26. Re2 {[%emt 0:00:46]} h5 {[%emt 0:00:00]} 27. Nc2 {[%emt 0:00:34]} d4 $1 {[%emt 0:02:48]} 28. e4 {[%emt 0:00:40]} fxe4+ {[%emt 0:00:02]} (28... Rc8 $11) 29. Rxe4 $16 {[%emt 0:13:00]} Kf7 {[%emt 0:00:44]} 30. Rce1 {[%emt 0:00:00]} (30. Nxd4 $16 Nxd4 31. Kxd4) 30... g6 {[%emt 0:00:40] [#]} (30... b5 $11 {keeps the balance.}) 31. a4 $1 {[%emt 0:00:00]} ({Reject} 31. Nxd4 $6 Nxd4 32. Kxd4 Rd8+ 33. Ke3 Rc6 $11) 31... b5 $2 {[%emt 0:00:42] Black cannot hold the game after this.} (31... Rxe4 $16 32. fxe4 b5) 32. Rxe6 $18 {[%emt 0:00:00]} Rxe6 {[%emt 0:00:00]} 33. Rxe6 {[%emt 0:00:00]} Kxe6 {[%emt 0:01:34]} 34. axb5 {[%emt 0:00:00]} axb5 {[%emt 0:00:00] And now ...Kd5 would win.} 35. Nxd4+ {[%emt 0:00:00] White mates.} Nxd4 {[%emt 0:00:00]} 36. Kxd4 {[%emt 0:00:00] KP-KP} Kf5 {[%emt 0:00:00]} 37. Ke3 {[%emt 0:00:00]} Ke6 {[%emt 0:00:59]} 38. Ke4 {[%emt 0:00:00]} Kf6 {[%emt 0:00:01] [#]} 39. f5 $1 {[%emt 0:00:00]} g5 {[%emt 0:00:00]} 40. hxg5+ {[%emt 0:00:00]} Kxg5 {[%emt 0:00:01]} 41. Ke5 {[%emt 0:20:33]} h4 {[%emt 0:30:01]} 42. f6 {[%emt 0:00:07]} h3 {[%emt 0:00:43]} 43. f7 {[%emt 0:00:10]} h2 {[%emt 0:00:02]} 44. f8=Q {[%emt 0:00:09]} h1=Q {[%emt 0:00:01]} 45. Qg7+ {[%emt 0:00:14] Weighted Error Value: White=0.08 (flawless) /Black=0.30} 1-0

[Event "13th Dolomiti-Forni di Sopra-A 2022"]
[Site "Forni di Sopra"]
[Date "2022.06.15"]
[Round "5.4"]
[White "Ceres, Dragos"]
[Black "Prraneeth Vuppala"]
[Result "0-1"]
[ECO "B51"]
[WhiteElo "2380"]
[BlackElo "2447"]
[Annotator "TA"]
[PlyCount "92"]
[EventDate "2022.06.13"]
[EventType "swiss"]
[EventCountry "ITA"]
[SourceTitle "playchess.com"]
[Source "ChessBase"]
[SourceQuality "1"]
[TimeControl "40/5400+30:1800+30"]

{[%evp 9,92,8,6,9,10,12,12,4,15,16,14,0,0,4,0,0,11,-7,0,-10,-8,0,0,-21,-28,-21,-34,-35,-36,-41,-45,-33,-36,-46,0,0,0,-12,-25,-30,-30,-30,-30,-30,-31,-27,-28,-20,-26,-96,-80,-83,-83,-85,-82,-133,-105,-99,-87,-253,-253,-252,-252,-228,-228,-253,-227,-435,-254,-254,-253,-256,-265,-417,-412,-485,-445,-426,-389,-762,-755,-754,-733,-5273,-970]} 1. e4 {[%emt 0:00:03]} c5 {[%emt 0:00:21]} 2. Nf3 {[%emt 0:00:06]} d6 {[%emt 0:00:07]} 3. Bb5+ {[%emt 0:00:06]} Nd7 {[%emt 0:00:13]} 4. O-O {[%emt 0:00:07]} a6 {[%emt 0:00:38]} 5. Bd3 {[%emt 0:00:08]} Ngf6 {[%emt 0:00:48]} 6. Re1 {[%emt 0:00:25] B51: Sicilian: Moscow Variation (3 Bb5+) without 3...Bd7.} e6 {[%emt 0:01:49]} 7. c3 {[%emt 0:00:10]} b5 {[%emt 0:00:48]} 8. Bc2 {[%emt 0:00:11] The position is equal.} c4 {[%emt 0:00:38]} 9. a4 {[%emt 0:09:10]} Bb7 {[%emt 0:00:20]} 10. d4 {[%emt 0:04:27]} cxd3 {[%emt 0:00:40]} 11. Qxd3 {[%emt 0:00:40]} Nc5 {[%emt 0:01:07][%csl LRd3,LRe4]} 12. Qe2 {[%emt 0:00:22]} bxa4 {[%emt 0:00:42]} 13. Bxa4+ {[%emt 0:05:27]} Nxa4 {[%emt 0:01:17]} 14. Rxa4 {[%emt 0:00:08]} Be7 {[%emt 0:10:16] [#]} 15. Bg5 $146 {[%emt 0:02:56]} ({Predecessor:} 15. Rd4 Qc7 16. c4 e5 17. Rdd1 Nxe4 18. Nbd2 Nxd2 19. Bxd2 O-O 20. Ng5 Rac8 21. b3 {0-1 (49) Khalafova,N (2279)-Rakotomaharo,F (2422) Chess.com INT 2020}) 15... h6 {[%emt 0:10:26]} 16. Bxf6 {[%emt 0:00:19]} Bxf6 {[%emt 0:01:10]} 17. Nbd2 {[%emt 0:00:30]} O-O {[%emt 0:02:50]} 18. Nb3 {[%emt 0:04:39]} Bc6 {[%emt 0:14:07] This bishop pair is nice.} 19. Ra2 {[%emt 0:00:26]} a5 {[%emt 0:07:40][%cal Ba6a5,Ba5a4][%mdl 32]} 20. Rea1 {[%emt 0:09:36][%cal Rb3a5]} a4 {[%emt 0:01:52]} 21. Nbd4 {[%emt 0:00:06]} Qb6 {[%emt 0:08:12]} (21... Bd7 $15) 22. Nxc6 $11 {[%emt 0:01:42]} Qxc6 {[%emt 0:00:08]} 23. Qc2 {[%emt 0:01:17][%cal Ra2a4]} Rfb8 {[%emt 0:01:58]} 24. h3 {[%emt 0:05:53][%cal Ra2a4]} Rb4 {[%emt 0:03:52]} 25. Nd2 {[%emt 0:02:42]} Rab8 {[%emt 0:00:59]} 26. Rc1 {[%emt 0:06:22] [#]} Rb3 {[%emt 0:05:47]} 27. Rb1 {[%emt 0:03:49] [#]} (27. Nxb3 $2 axb3 28. Ra6 Qxa6 $19) 27... g6 $1 {[%emt 0:09:02][%cal Oh6h5]} 28. g3 {[%emt 0:07:32]} ({But not} 28. Nxb3 $2 axb3 29. Qe2 bxa2 $19) (28. Qd3 R3b5) 28... d5 {[%emt 0:06:56]} 29. Raa1 {[%emt 0:02:30]} ({Wrong is} 29. Nxb3 $2 axb3 30. Qe2 bxa2 $19) (29. exd5 $11 exd5 30. Raa1 (30. Nxb3 $2 axb3 31. Qe2 bxa2 $19)) 29... R3b4 $1 $17 {[%emt 0:01:50]} 30. exd5 {[%emt 0:01:29]} exd5 {[%emt 0:00:02][%cal Be6d5,Bd5d4][%mdl 32]} 31. Qc1 {[%emt 0:01:15]} R4b6 {[%emt 0:01:37] Black is much more active.} 32. Nf1 {[%emt 0:03:24]} (32. h4 $142) 32... h5 {[%emt 0:01:30]} 33. h4 {[%emt 0:07:17]} Qd7 {[%emt 0:04:29]} 34. Qd2 {[%emt 0:08:42] White does not recover from this.} (34. Qc2 $17) 34... d4 $19 {[%emt 0:01:06]} 35. Rd1 {[%emt 0:02:49]} Rxb2 {[%emt 0:00:51]} 36. Qf4 {[%emt 0:00:04]} Bg7 {[%emt 0:00:39] Hoping for ...Qa7.} 37. cxd4 {[%emt 0:00:31]} R8b4 {[%emt 0:00:23][%cal Rb4d4]} 38. Ra3 $2 {[%emt 0:02:00]} (38. Ne3) 38... Rxd4 {[%emt 0:01:25]} (38... R2b3 $142 39. Rd3 Rxa3 40. Rxa3 Bxd4) 39. Rxd4 {[%emt 0:00:21]} Bxd4 {[%emt 0:00:34]} 40. Rd3 {[%emt 0:03:47]} Rb4 {[%emt 0:00:17][%cal Od4f2] And now ...Bxf2+! would win.} 41. Qd2 {[%emt 0:31:15]} (41. Ne3 {was the only defense.}) 41... Qd6 {[%emt 0:07:19]} 42. Qe2 {[%emt 0:00:00]} Rb3 {[%emt 0:05:00] Strongly threatening ...Rxd3.} 43. Rd2 {[%emt 0:00:00]} Kg7 {[%emt 0:06:31]} ({Don't blunder} 43... Rxg3+ $2 44. Nxg3 Qxg3+ 45. Kf1 Qh3+ 46. Kg1 Qxh4 47. Rd3 $19) 44. Qe8 $2 {[%emt 0:00:00]} (44. Qd1 Rb4 45. Ne3) 44... Rb1 {[%emt 0:03:41] ( -> ...Qxg3+). Black is clearly winning.} 45. Kg2 {[%emt 0:00:00]} Qd5+ {[%emt 0:00:36]} 46. f3 {[%emt 0:00:00] [#]} Rxf1 $1 {[%emt 0:01:35][%mdl 512] Weighted Error Value: White=0.46/Black=0.09 (flawless)} 0-1

[Event "13th Dolomiti-Forni di Sopra-A 2022"]
[Site "Forni di Sopra"]
[Date "2022.06.15"]
[Round "5.5"]
[White "Bellia, Fabrizio"]
[Black "Goh, Zi Han"]
[Result "1-0"]
[ECO "B52"]
[WhiteElo "2418"]
[BlackElo "2087"]
[Annotator "TA"]
[PlyCount "189"]
[EventDate "2022.06.13"]
[EventType "swiss"]
[EventCountry "ITA"]
[SourceTitle "playchess.com"]
[Source "ChessBase"]
[SourceQuality "1"]
[TimeControl "40/5400+30:1800+30"]

{[%evp 9,188,9,18,12,22,5,5,20,29,25,25,29,55,36,19,43,55,20,56,0,10,0,45,32,22,31,54,0,0,0,0,0,0,0,29,24,32,30,30,37,24,24,66,60,80,72,139,126,191,189,199,89,89,77,171,171,177,175,202,196,208,206,222,216,250,167,162,162,162,162,214,200,209,173,233,204,293,253,314,272,246,173,233,233,233,233,233,233,233,233,233,233,233,233,379,256,412,366,366,364,588,588,588,588,588,588,588,588,588,588,588,588,588,588,588,588,588,588,588,588,588,588,588,588,588,588,588,588,588,588,588,588,588,588,588,588,588,588,588,588,588,588,588,588,588,588,588,588,588,588,588,588,588,588,29983,29984,29984,29985,29986,29987,29989,585,29990,648,29991,29992,29992,606,29993,29994,29994,29995,29995,29996,29996,29997,29997,29998,29998,29999,29999]} 1. e4 {[%emt 1:31:00]} c5 {[%emt 0:00:42]} 2. Nf3 {[%emt 0:00:00]} d6 {[%emt 0:00:18]} 3. Bb5+ {[%emt 0:00:00]} Bd7 {[%emt 0:00:37]} 4. Bxd7+ {[%emt 0:00:00]} Qxd7 {[%emt 0:00:11]} 5. O-O {[%emt 0:00:00]} g6 {[%emt 0:01:59]} 6. c3 {[%emt 0:00:00] B52: Sicilian: Moscow Variation with 3...Bd7.} Nf6 {[%emt 0:05:51]} 7. Re1 {[%emt 0:00:00]} Bg7 {[%emt 0:03:31]} 8. d4 {[%emt 0:00:00] The position is equal.} cxd4 {[%emt 0:05:53]} 9. cxd4 {[%emt 0:00:00]} d5 {[%emt 0:00:41]} 10. Ne5 {[%emt 0:00:00]} Qc8 {[%emt 0:06:49]} 11. exd5 {[%emt 0:00:00]} Nxd5 {[%emt 0:11:37] [#]} 12. Qf3 $146 {[%emt 0:00:00][%csl LRd5,LRf7]} ({Predecessor:} 12. Qb3 e6 13. Nd2 O-O 14. Ndc4 Nc6 15. Nxc6 Qxc6 16. Ne5 Qc7 17. Bd2 b6 18. Rac1 {½-½ (59) Olsarova,K (2027)-Narva,T (1865) Kemer 2007}) 12... Nf6 {[%emt 0:02:10]} 13. Bg5 {[%emt 0:00:00] Hoping for Bxf6.} O-O {[%emt 0:02:56]} 14. Nd2 {[%emt 0:00:00]} (14. Nc3 $14 {is superior.}) 14... Nc6 $1 $11 {[%emt 0:11:02]} 15. Nb3 {[%emt 0:00:00][%cal Bd2b3,Bb3a5,Ba5b7][%mdl 32]} Nb4 {[%emt 0:08:59]} 16. a3 {[%emt 0:00:00]} Nbd5 {[%emt 0:02:33]} 17. Bxf6 {[%emt 0:00:00]} Nxf6 {[%emt 0:00:27]} 18. Rac1 {[%emt 0:00:00]} ({White should play} 18. Nc5 $1 $14) 18... Qf5 {[%emt 0:03:41]} 19. Qxf5 {[%emt 0:00:00]} (19. Qxb7 $2 Rab8 20. Qxa7 Rxb3 $19) 19... gxf5 {[%emt 0:01:28]} 20. Na5 {[%emt 0:00:00]} Bh6 {[%emt 0:06:47]} 21. Rc2 {[%emt 0:00:00]} Rac8 {[%emt 0:01:40]} 22. Ree2 {[%emt 0:00:00]} Rfd8 {[%emt 0:04:12]} 23. Nxb7 {[%emt 0:00:00]} Rxc2 {[%emt 0:00:09]} 24. Rxc2 {[%emt 0:00:00]} Rxd4 {[%emt 0:00:14][%cal Rd4d1]} 25. g3 {[%emt 0:00:00]} f4 {[%emt 0:06:17]} 26. Kg2 {[%emt 0:00:00] White is more active.} fxg3 {[%emt 0:00:32]} 27. hxg3 {[%emt 0:00:00]} Nd5 {[%emt 0:01:18]} (27... Bf8 $142) 28. Nc6 $16 {[%emt 0:00:00]} Rd2 {[%emt 0:06:41]} (28... Rd1 $16) 29. Rxd2 $18 {[%emt 0:00:00]} Bxd2 {[%emt 0:00:08][%mdl 4096] Endgame KBN-KNN} 30. b4 {[%emt 0:00:00]} (30. Nxa7 $6 Bc1 $16) (30. Nc5 $18 {has better winning chances.}) 30... Bc1 $16 {[%emt 0:02:00]} 31. a4 {[%emt 0:00:00][%cal Ba3a4,Ba4a5][%mdl 32] Black must now prevent a5.} Kf8 {[%emt 0:01:52]} (31... Ba3 $16 {was worth a try.}) 32. a5 $1 $18 {[%emt 0:01:39]} ({Much less strong is} 32. Nxa7 $6 Nxb4 33. Kf3 Bb2 $14) 32... Ke8 {[%emt 0:01:26]} 33. b5 {[%emt 0:01:49][%cal Bb4b5,Bb5b6][%mdl 32]} ({But not} 33. Nxa7 Nxb4 34. Nc5 Nd5 $16) 33... Kd7 {[%emt 0:00:44]} 34. Nc5+ {[%emt 0:03:13]} Kd6 {[%emt 0:01:06]} 35. Nb3 {[%emt 0:00:31] Pair of Knights!} Ba3 {[%emt 0:00:37]} 36. Nxa7 {[%emt 0:00:08] Strongly threatening b6.} Kc7 {[%emt 0:00:29]} 37. b6+ {[%emt 0:00:31]} Kb7 {[%emt 0:00:24][%cal Od5b6]} 38. Nb5 {[%emt 0:00:55]} Bb4 {[%emt 0:00:23][%cal Ob4a5] [#]} 39. N5d4 $1 {[%emt 0:01:48]} e5 {[%emt 0:00:57]} (39... e6 $142 40. Kf3 Nf6) 40. Nf5 {[%emt 0:02:57]} e4 {[%emt 0:00:35]} 41. Kf1 {[%emt 0:33:38]} Ka6 {[%emt 0:17:15]} (41... h5 $142 42. Nh6 Ne7) 42. Ke2 {[%emt 0:00:00]} Kb7 {[%emt 0:03:05]} (42... h5 {is a better defense.} 43. Nh6 f6) 43. g4 {[%emt 0:00:00]} Nc3+ {[%emt 0:05:44]} 44. Kf1 {[%emt 0:00:00]} Nd5 {[%emt 0:00:13]} 45. Ne3 {[%emt 0:00:00]} Nf4 {[%emt 0:01:42]} (45... Nf6 $142 46. g5 Nd7) 46. Nc4 {[%emt 0:00:00]} h5 {[%emt 0:01:07]} 47. gxh5 {[%emt 0:00:00]} Nxh5 {[%emt 0:00:08] [#]} 48. Ne5 $1 {[%emt 0:00:00] And now Nd7 would win.} Nf4 {[%emt 0:02:00]} 49. Nxf7 {[%emt 0:00:00]} Bxa5 {[%emt 0:01:43]} 50. Nxa5+ {[%emt 0:00:00]} Kxb6 {[%emt 0:00:04]} 51. Nc4+ {[%emt 0:00:00]} Ka7 {[%emt 0:00:48]} (51... Kc6 {was necessary.} 52. Ne3 Nh3) 52. Nfe5 {[%emt 0:00:00]} Nh3 $2 {[%emt 0:00:27]} (52... Kb8 53. Ne3 Kc7) 53. Ne3 {[%emt 0:00:00]} ({Not} 53. Nc6+ Kb7 $14) 53... Kb6 {[%emt 0:00:44]} 54. Kg2 {[%emt 0:00:00]} Nxf2 {[%emt 0:00:06]} (54... Nf4+ 55. Kg3 Ne2+ 56. Kg4 Kc5) 55. Kxf2 {[%emt 0:00:00]} Kc5 {[%emt 0:00:12]} 56. Ke2 {[%emt 0:00:00]} Kd6 {[%emt 0:00:30]} 57. N5g4 {[%emt 0:00:00]} Kc5 {[%emt 0:00:18]} 58. Kd2 {[%emt 0:00:00]} Kd4 {[%emt 0:00:10]} 59. Kc2 {[%emt 0:00:00]} Kc5 {[%emt 0:00:06]} 60. Kc3 {[%emt 0:00:00]} Kc6 {[%emt 0:00:17]} 61. Kc4 {[%emt 0:00:00]} Kd6 {[%emt 0:00:10]} 62. Kd4 {[%emt 0:00:00]} Ke6 {[%emt 0:00:15]} 63. Kc5 {[%emt 0:00:00]} Ke7 {[%emt 0:01:30]} 64. Kd5 {[%emt 0:00:00]} Kd7 {[%emt 0:00:08]} 65. Nf6+ {[%emt 0:00:00]} Ke7 {[%emt 0:00:43]} 66. Ke5 {[%emt 0:00:00]} Kf7 {[%emt 0:00:06]} 67. Nfd5 {[%emt 0:00:00]} Kg6 {[%emt 0:00:12]} 68. Kf4 {[%emt 0:00:00]} Kh5 {[%emt 0:01:28]} 69. Ne7 {[%emt 0:00:00]} Kh4 {[%emt 0:00:23]} 70. Ng6+ {[%emt 0:05:36]} Kh3 {[%emt 0:01:09]} 71. Ne5 {[%emt 0:00:34]} Kh4 {[%emt 0:00:19]} 72. N5g4 {[%emt 0:01:55]} Kh3 {[%emt 0:00:55]} 73. Nf2+ {[%emt 0:00:30]} Kh4 {[%emt 0:00:13]} 74. Nh1 {[%emt 0:00:40]} Kh3 {[%emt 0:00:54]} 75. Ng3 {[%emt 0:00:07]} Kh4 {[%emt 0:00:18]} 76. Ne2 {[%emt 0:00:10]} Kh5 {[%emt 0:00:57]} 77. Kf5 {[%emt 0:00:05]} Kh6 {[%emt 0:00:42]} 78. Nf4 {[%emt 0:00:23] White threatens Kf6 and mate.} Kg7 {[%emt 0:00:23]} 79. Ke6 {[%emt 0:00:07] Ke7 would kill now.} Kf8 {[%emt 0:00:37]} 80. Ng6+ {[%emt 0:01:14]} Ke8 {[%emt 0:00:45]} 81. Ne5 {[%emt 0:00:13]} Kf8 {[%emt 0:00:37]} 82. Kd7 {[%emt 0:00:06]} Kg7 {[%emt 0:00:17]} 83. Ke7 {[%emt 0:00:11]} Kh6 {[%emt 0:00:22]} 84. Kf6 {[%emt 0:00:12]} Kh5 {[%emt 0:00:04]} 85. Ng6 {[%emt 0:00:10]} Kh6 {[%emt 0:02:58]} 86. Nf4 {[%emt 0:00:10]} Kh7 {[%emt 0:00:00]} 87. Ne6 {[%emt 0:00:47]} Kh6 {[%emt 0:00:00]} 88. Ng7 {[%emt 0:00:07]} Kh7 {[%emt 0:00:00]} 89. Ngf5 {[%emt 0:00:43] White mates.} Kg8 {[%emt 0:00:00]} 90. Ke7 {[%emt 0:00:09]} Kh7 {[%emt 0:00:00]} 91. Kf7 {[%emt 0:00:07]} Kh8 {[%emt 0:00:00]} 92. Ng4 {[%emt 0:00:38]} e3 {[%emt 0:00:00]} 93. Nf6 {[%emt 0:00:04]} e2 {[%emt 0:00:00]} 94. Nh4 {[%emt 0:00:06][%cal Rh4g6]} e1=N {[%emt 0:04:30]} 95. Ng6# {[%emt 0:00:05] Weighted Error Value: White=0.15 (very precise) /Black=0.27 (precise)} 1-0